Workbook

Sheet Рейтинг 52 недель
A1: Лос-Анджелес | B1: № | C1: Прогнозист | D1: Итого | E1: Кол-во турниров | F1: Вашингтон | G1: Монреаль | H1: Цинциннати | I1: Винстон-Салем | J1: Нью-Йорк | K1: Метц | L1: Куала-Лумпур | M1: Пекин | N1: Токио | O1: Шанхай | P1: Москва | Q1: Санкт-Петербург | R1: Базель | S1: Валенсия | T1: Париж | U1: Лондон | V1: Доха | W1: Брисбен | X1: Сидней | Y1: Мельбурн | Z1: Загреб | AA1: Роттердам | AB1: Мемфис | AC1: Дубай | AD1: Индиан-Уэллс | AE1: Майами | AF1: Хьюстон | AG1: Монте-Карло | AH1: Барселона | AI1: Мюнхен | AJ1: Мадрид | AK1: Рим | AL1: Ницца | AM1: Париж | AN1: Лондон | AO1: Истбурн | AP1: Уимблдон | AQ1: Ньюпорт | AR1: Гамбург | AS1: Лос-Анджелес
A2: 1 | B2: 1 | C2: berty | D2: =SUM(F2:AS2) -> 1039 | E2: =COUNT(F2:AS2) -> 37 | F2: 1 | G2: 65 | H2: 30 | I2: 18 | J2: 1 | K2: 35 | L2: 10 | N2: 10 | O2: 30 | P2: 10 | Q2: 1 | R2: 10 | T2: 30 | U2: 80 | V2: 35 | X2: 1 | Y2: 1 | Z2: 10 | AA2: 1 | AB2: 10 | AC2: 10 | AD2: 80 | AE2: 15 | AF2: 10 | AG2: 50 | AH2: 20 | AI2: 10 | AJ2: 100 | AK2: 30 | AL2: 1 | AM2: 120 | AN2: 20 | AO2: 1 | AP2: 150 | AQ2: 1 | AR2: 10 | AS2: 22
A3: 10 | B3: 2 | C3: Папа Ranger | D3: =SUM(F3:AS3) -> 988 | E3: =COUNT(F3:AS3) -> 37 | F3: 1 | G3: 100 | H3: 1 | I3: 26 | J3: 120 | K3: 1 | L3: 1 | M3: 26 | O3: 30 | P3: 1 | Q3: 26 | S3: 26 | T3: 1 | U3: 110 | V3: 1 | X3: 1 | Y3: 150 | Z3: 1 | AA3: 1 | AB3: 1 | AC3: 10 | AD3: 30 | AE3: 1 | AF3: 26 | AG3: 80 | AH3: 55 | AI3: 10 | AJ3: 1 | AK3: 1 | AL3: 10 | AM3: 40 | AN3: 45 | AO3: 1 | AP3: 1 | AQ3: 1 | AR3: 50 | AS3: 1
B4: 3 | C4: Dinusik | D4: =SUM(F4:AS4) -> 928 | E4: =COUNT(F4:AS4) -> 33 | G4: 1 | J4: 1 | K4: 1 | L4: 10 | N4: 1 | O4: 100 | P4: 1 | Q4: 35 | R4: 18 | T4: 50 | U4: 30 | V4: 26 | X4: 26 | Y4: 65 | Z4: 1 | AA4: 50 | AB4: 10 | AC4: 10 | AD4: 1 | AE4: 1 | AF4: 10 | AG4: 65 | AH4: 70 | AI4: 1 | AJ4: 65 | AK4: 80 | AL4: 26 | AM4: 150 | AN4: 1 | AO4: 1 | AP4: 1 | AR4: 10 | AS4: 10
A5: 10 | B5: 4 | C5: Геннадий51 | D5: =SUM(F5:AS5) -> 774 | E5: =COUNT(F5:AS5) -> 36 | F5: 34 | G5: 1 | H5: 30 | I5: 1 | J5: 20 | K5: 1 | L5: 50 | M5: 1 | O5: 1 | P5: 1 | Q5: 1 | S5: 35 | T5: 100 | W5: 1 | X5: 1 | Y5: 40 | Z5: 1 | AA5: 18 | AB5: 10 | AC5: 1 | AD5: 1 | AE5: 65 | AF5: 1 | AG5: 1 | AH5: 1 | AI5: 35 | AJ5: 1 | AK5: 65 | AL5: 10 | AM5: 90 | AN5: 20 | AO5: 10 | AP5: 40 | AQ5: 26 | AR5: 10 | AS5: 50
A6: 50 | B6: 5 | C6: putoga | D6: =SUM(F6:AS6) -> 683 | E6: =COUNT(F6:AS6) -> 21 | F6: 12 | G6: 30 | H6: 30 | I6: 45 | J6: 90 | K6: 50 | L6: 26 | N6: 1 | O6: 80 | P6: 10 | Q6: 1 | R6: 1 | U6: 15 | Y6: 1 | AB6: 1 | AD6: 1 | AE6: 50 | AF6: 18 | AG6: 100 | AM6: 1 | AP6: 120
A7: 1 | B7: 6 | C7: Ranger | D7: =SUM(F7:AS7) -> 653 | E7: =COUNT(F7:AS7) -> 33 | F7: 45 | G7: 1 | H7: 65 | I7: 18 | J7: 20 | K7: 1 | L7: 35 | N7: 50 | O7: 1 | Q7: 1 | S7: 50 | T7: 1 | U7: 85 | V7: 1 | X7: 1 | Y7: 90 | Z7: 1 | AA7: 26 | AB7: 1 | AD7: 1 | AE7: 1 | AG7: 1 | AH7: 20 | AI7: 1 | AJ7: 1 | AK7: 1 | AL7: 1 | AM7: 40 | AN7: 55 | AO7: 35 | AP7: 1 | AQ7: 1 | AR7: 1
A8: 10 | B8: 7 | C8: zurikati | D8: =SUM(F8:AS8) -> 644 | E8: =COUNT(F8:AS8) -> 35 | F8: 23 | G8: 1 | H8: 50 | I8: 1 | J8: 150 | K8: 10 | L8: 26 | N8: 18 | O8: 1 | P8: 10 | Q8: 18 | R8: 35 | T8: 1 | U8: 15 | V8: 18 | X8: 10 | Y8: 1 | AA8: 35 | AB8: 18 | AC8: 1 | AD8: 1 | AE8: 1 | AF8: 10 | AG8: 1 | AH8: 20 | AI8: 18 | AJ8: 30 | AK8: 1 | AL8: 35 | AM8: 1 | AN8: 20 | AP8: 40 | AQ8: 1 | AR8: 1 | AS8: 22
A9: 1 | B9: 8 | C9: Cazorla | D9: =SUM(F9:AS9) -> 589.5 | E9: =COUNT(F9:AS9) -> 33 | I9: 1 | J9: 1 | K9: 1 | L9: 1 | N9: 26 | O9: 65 | P9: 10 | Q9: 10 | R9: 1 | T9: 1 | V9: 10 | X9: 1 | Y9: 120 | Z9: 35 | AA9: 1 | AB9: 1 | AC9: 1 | AD9: 30 | AE9: 1 | AF9: 10 | AG9: 1 | AH9: 1 | AI9: 50 | AJ9: 50 | AK9: 1 | AL9: 10 | AM9: 20 | AN9: 35 | AO9: 1 | AP9: 40 | AQ9: 42.5 | AR9: 1 | AS9: 10
A10: 1 | B10: 9 | C10: gugu911 | D10: =SUM(F10:AS10) -> 566.5 | E10: =COUNT(F10:AS10) -> 34 | I10: 18 | J10: 1 | K10: 10 | L10: 1 | M10: 50 | O10: 30 | P10: 26 | Q10: 50 | S10: 18 | T10: 1 | U10: 15 | V10: 10 | X10: 1 | Y10: 1 | Z10: 18 | AA10: 10 | AB10: 35 | AC10: 1 | AD10: 1 | AE10: 15 | AF10: 35 | AG10: 30 | AH10: 1 | AI10: 10 | AJ10: 80 | AK10: 30 | AL10: 1 | AM10: 1 | AN10: 20 | AO10: 1 | AP10: 1 | AQ10: 42.5 | AR10: 1 | AS10: 1
A11: 1 | B11: 10 | C11: Acer | D11: =SUM(F11:AS11) -> 558 | E11: =COUNT(F11:AS11) -> 33 | F11: 1 | G11: 30 | H11: 80 | I11: 10 | J11: 40 | K11: 10 | L11: 1 | M11: 18 | O11: 15 | P11: 1 | Q11: 10 | S11: 1 | T11: 15 | W11: 1 | X11: 1 | Y11: 10 | AA11: 1 | AD11: 1 | AE11: 30 | AF11: 50 | AG11: 1 | AH11: 35 | AI11: 1 | AJ11: 1 | AK11: 100 | AL11: 1 | AM11: 1 | AN11: 1 | AO11: 50 | AP11: 20 | AQ11: 10 | AR11: 1 | AS11: 10
A12: 1 | B12: 11 | C12: marsianin65 | D12: =SUM(F12:AS12) -> 541 | E12: =COUNT(F12:AS12) -> 33 | F12: 63 | G12: 1 | H12: 1 | I12: 1 | J12: 40 | K12: 10 | L12: 1 | M12: 1 | O12: 1 | P12: 35 | Q12: 1 | R12: 10 | V12: 50 | X12: 10 | Y12: 10 | Z12: 26 | AA12: 1 | AB12: 1 | AC12: 35 | AD12: 1 | AE12: 1 | AF12: 1 | AH12: 45 | AI12: 1 | AJ12: 30 | AK12: 30 | AL12: 50 | AM12: 1 | AN12: 70 | AO12: 1 | AP12: 1 | AR12: 10 | AS12: 1
A13: 10 | B13: 12(+1) | C13: leosin | D13: =SUM(F13:AS13) -> 377 | E13: =COUNT(F13:AS13) -> 33 | F13: 3 | G13: 1 | H13: 1 | I13: 10 | J13: 1 | K13: 1 | L13: 1 | M13: 1 | O13: 1 | Q13: 1 | S13: 10 | T13: 65 | V13: 1 | X13: 1 | Y13: 10 | Z13: 10 | AB13: 26 | AC13: 10 | AD13: 1 | AE13: 1 | AF13: 1 | AG13: 30 | AH13: 1 | AI13: 1 | AJ13: 30 | AK13: 30 | AL13: 10 | AM13: 40 | AN13: 1 | AO13: 1 | AP13: 65 | AR13: 1 | AS13: 10
A14: 26 | B14: 13(-1) | C14: MC_Jason | D14: =SUM(F14:AS14) -> 338 | E14: =COUNT(F14:AS14) -> 18 | F14: 12 | G14: 80 | H14: 1 | I14: 18 | J14: 1 | K14: 10 | L14: 10 | M14: 35 | O14: 1 | P14: 1 | Q14: 10 | R14: 26 | T14: 80 | U14: 15 | W14: 26 | X14: 10 | Y14: 1 | Z14: 1
A15: 1 | B15: 14 | C15: JS | D15: =SUM(F15:AS15) -> 328 | E15: =COUNT(F15:AS15) -> 32 | F15: 3 | G15: 15 | H15: 15 | I15: 35 | J15: 20 | K15: 1 | L15: 1 | M15: 10 | O15: 50 | P15: 1 | Q15: 1 | S15: 1 | T15: 1 | W15: 35 | X15: 1 | Y15: 1 | Z15: 50 | AA15: 1 | AB15: 10 | AC15: 1 | AD15: 1 | AE15: 1 | AF15: 1 | AH15: 1 | AI15: 26 | AJ15: 30 | AL15: 1 | AM15: 1 | AP15: 1 | AQ15: 1 | AR15: 10 | AS15: 1
B16: 15 | C16: safin | D16: =SUM(F16:AS16) -> 322 | E16: =COUNT(F16:AS16) -> 23 | G16: 15 | H16: 15 | I16: 1 | J16: 20 | L16: 1 | N16: 1 | O16: 1 | P16: 18 | Q16: 10 | R16: 1 | T16: 1 | W16: 1 | X16: 50 | Y16: 1 | Z16: 10 | AA16: 10 | AB16: 50 | AC16: 26 | AD16: 50 | AE16: 1 | AG16: 1 | AO16: 18 | AP16: 20
A17: 1 | B17: 16 | C17: LLEYTON26 | D17: =SUM(F17:AS17) -> 307 | E17: =COUNT(F17:AS17) -> 25 | F17: 12 | G17: 30 | H17: 1 | J17: 20 | K17: 1 | N17: 35 | O17: 30 | P17: 1 | Q17: 1 | R17: 1 | W17: 50 | X17: 35 | Y17: 1 | AA17: 1 | AB17: 10 | AC17: 1 | AD17: 1 | AE17: 1 | AH17: 20 | AI17: 1 | AK17: 50 | AM17: 1 | AP17: 1 | AR17: 1 | AS17: 1
B18: 17 | C18: Katolia | D18: =SUM(F18:AS18) -> 287 | E18: =COUNT(F18:AS18) -> 16 | Q18: 1 | S18: 10 | T18: 15 | W18: 18 | X18: 18 | Y18: 40 | Z18: 1 | AA18: 1 | AC18: 10 | AD18: 100 | AE18: 30 | AF18: 1 | AG18: 30 | AH18: 1 | AI18: 10 | AJ18: 1
A19: 18 | B19: 18(+2) | C19: Dronor | D19: =SUM(F19:AS19) -> 217 | E19: =COUNT(F19:AS19) -> 17 | F19: 1 | G19: 15 | H19: 15 | I19: 10 | J19: 40 | Y19: 10 | AA19: 1 | AB19: 1 | AC19: 18 | AE19: 1 | AG19: 1 | AK19: 1 | AL19: 1 | AM19: 65 | AP19: 1 | AQ19: 10 | AR19: 26
B20: 19(-1) | C20: Seri | D20: =SUM(F20:AS20) -> 235 | E20: =COUNT(F20:AS20) -> 27 | F20: 3 | G20: 15 | J20: 1 | K20: 1 | L20: 1 | N20: 1 | O20: 1 | P20: 1 | S20: 1 | T20: 1 | V20: 1 | X20: 10 | Y20: 10 | Z20: 1 | AA20: 10 | AB20: 1 | AC20: 10 | AE20: 100 | AF20: 1 | AG20: 30 | AH20: 10 | AI20: 1 | AM20: 20 | AP20: 1 | AQ20: 1 | AR20: 1 | AS20: 1
B21: 20(-1) | C21: Montella | D21: =SUM(F21:AS21) -> 222 | E21: =COUNT(F21:AS21) -> 21 | T21: 15 | W21: 10 | X21: 1 | Y21: 1 | AA21: 10 | AC21: 1 | AD21: 15 | AE21: 15 | AF21: 10 | AG21: 1 | AH21: 1 | AJ21: 1 | AK21: 1 | AL21: 1 | AM21: 1 | AN21: 10 | AO21: 26 | AP21: 90 | AQ21: 10 | AR21: 1 | AS21: 1
B22: 21 | C22: irina | D22: =SUM(F22:AS22) -> 174 | E22: =COUNT(F22:AS22) -> 9 | J22: 20 | R22: 50 | T22: 30 | V22: 1 | AD22: 30 | AE22: 1 | AL22: 1 | AM22: 1 | AP22: 40
A23: 1 | B23: 22 | C23: Montanes | D23: =SUM(F23:AS23) -> 170 | E23: =COUNT(F23:AS23) -> 13 | F23: 12 | G23: 1 | H23: 100 | I23: 10 | J23: 1 | O23: 1 | W23: 1 | X23: 1 | Y23: 10 | AA23: 1 | AC23: 1 | AD23: 30 | AE23: 1
B24: 23 | C24: neon | D24: =SUM(F24:AS24) -> 163 | E24: =COUNT(F24:AS24) -> 7 | J24: 1 | Y24: 40 | AE24: 80 | AJ24: 1 | AM24: 20 | AN24: 1 | AP24: 20
B25: 24 | C25: Людмила | D25: =SUM(F25:AS25) -> 158 | E25: =COUNT(F25:AS25) -> 8 | J25: 65 | Y25: 40 | AE25: 15 | AG25: 15 | AJ25: 1 | AM25: 20 | AN25: 1 | AP25: 1
B26: 25 | C26: Expert | D26: =SUM(F26:AS26) -> 146 | E26: =COUNT(F26:AS26) -> 8 | F26: 12 | G26: 1 | H26: 30 | I26: 60 | J26: 40 | L26: 1 | M26: 1 | T26: 1
B27: 26 | C27: Stivi | D27: =SUM(F27:AS27) -> 146 | E27: =COUNT(F27:AS27) -> 4 | AC27: 50 | AD27: 65 | AE27: 30 | AF27: 1
B28: 27(+1) | C28: Projecto | D28: =SUM(F28:AS28) -> 139 | E28: =COUNT(F28:AS28) -> 11 | G28: 1 | H28: 15 | J28: 20 | K28: 35 | L28: 10 | N28: 1 | O28: 15 | P28: 1 | Q28: 1 | S28: 10 | T28: 30
B29: 28(+1) | C29: BARometer | D29: =SUM(F29:AS29) -> 134 | E29: =COUNT(F29:AS29) -> 14 | J29: 1 | L29: 1 | N29: 1 | W29: 1 | X29: 10 | Y29: 1 | AE29: 30 | AL29: 18 | AM29: 40 | AN29: 1 | AO29: 1 | AP29: 1 | AQ29: 10 | AR29: 18
A30: 35 | B30: 29(-2) | C30: Poliglot17 | D30: =SUM(F30:AS30) -> 95 | E30: =COUNT(F30:AS30) -> 8 | F30: 1 | G30: 50 | H30: 1 | J30: 1 | M30: 1 | R30: 1 | T30: 30 | W30: 10
B31: 30 | C31: Шаховец | D31: =SUM(F31:AS31) -> 115 | E31: =COUNT(F31:AS31) -> 10 | F31: 1 | G31: 30 | H31: 15 | I31: 10 | J31: 1 | K31: 26 | L31: 1 | M31: 10 | O31: 1 | AM31: 20
B32: 31(+2) | C32: Аргентинец | D32: =SUM(F32:AS32) -> 108 | E32: =COUNT(F32:AS32) -> 4 | AP32: 20 | AQ32: 18 | AR32: 35 | AS32: 35
B33: 32(-1) | C33: Junolove | D33: =SUM(F33:AS33) -> 67 | E33: =COUNT(F33:AS33) -> 9 | F33: 1 | I33: 1 | K33: 1 | M33: 10 | O33: 1 | P33: 50 | Q33: 1 | S33: 1 | X33: 1
B34: 33(-1) | C34: Шаховас | D34: =SUM(F34:AS34) -> 66 | E34: =COUNT(F34:AS34) -> 7 | F34: 3 | G34: 1 | H34: 1 | I34: 10 | J34: 40 | N34: 10 | O34: 1
B35: 34 | C35: bakker | D35: =SUM(F35:AS35) -> 34 | E35: =COUNT(F35:AS35) -> 6 | H35: 1 | I35: 10 | J35: 20 | AA35: 1 | AD35: 1 | AE35: 1
B36: 35(+1) | C36: MrDavenport | D36: =SUM(F36:AS36) -> 5 | E36: =COUNT(F36:AS36) -> 5 | J36: 1 | Y36: 1 | AD36: 1 | AE36: 1 | AM36: 1
A37: 1 | B37: 36(-1) | C37: Ruthenium | D37: =SUM(F37:AS37) -> 2 | E37: =COUNT(F37:AS37) -> 2 | F37: 1 | G37: 1
B38: 37(+1) | C38: x-demon | D38: =SUM(F38:AS38) -> 3 | E38: =COUNT(F38:AS38) -> 3 | Z38: 1 | AA38: 1 | AE38: 1
A39: 1 | B39: 38(-1) | C39: Kryu | D39: =SUM(F39:AS39) -> 1 | E39: =COUNT(F39:AS39) -> 1 | J39: 1
B40: 39 | C40: GRAFF | D40: =SUM(F40:AS40) -> 2 | E40: =COUNT(F40:AS40) -> 2 | I40: 1 | J40: 1
B41: 40(+1) | C41: tech1 | D41: =SUM(F41:AS41) -> 1 | E41: =COUNT(F41:AS41) -> 1 | G41: 1
B42: 41(+1) | C42: Graff | D42: =SUM(F42:AS42) -> 1 | E42: =COUNT(F42:AS42) -> 1 | AN42: 1

Sheet Лист1
A1: Место | B1: Прогнозист | C1: Доха | D1: Брисбен | E1: Сидней | F1: Мельбурн | G1: Загреб | H1: Роттердам | I1: Мемфис | J1: Дубай | K1: Индиан-Уэллс | L1: Майами | M1: Хьюстон | N1: Монте-Карло | O1: Барселона | P1: Мюнхен | Q1: Мадрид | R1: Рим | S1: Ницца | T1: Париж | U1: Лондон | V1: Истбурн | W1: Уимблдон | X1: Ньюпорт | Y1: Гамбург | Z1: Всего | AA1: Вычет | AB1: Всего турниров | AC1: Итого
A2: 1 | B2: berty | C2: 35 | E2: 1 | F2: 1 | G2: 10 | H2: 1 | I2: 10 | J2: 10 | K2: 80 | L2: 15 | M2: 10 | N2: 50 | O2: 20 | P2: 10 | Q2: 100 | R2: 30 | S2: 1 | T2: 120 | U2: 20 | V2: 1 | W2: 150 | X2: 1 | Y2: 10 | Z2: =SUM(C2:Y2) -> 686 | AA2: 45 | AB2: =COUNT(C2:Y2) -> 22 | AC2: =Z2-AA2 -> 641
A3: 2 | B3: Dinusik | C3: 26 | E3: 26 | F3: 65 | G3: 1 | H3: 50 | I3: 10 | J3: 10 | K3: 1 | L3: 1 | M3: 10 | N3: 65 | O3: 70 | P3: 1 | Q3: 65 | R3: 80 | S3: 26 | T3: 150 | U3: 1 | V3: 1 | W3: 1 | Y3: 10 | Z3: 670 | AA3: 44 | AB3: 21 | AC3: 626
A4: 3 | B4: Папа Ranger | C4: 1 | E4: 1 | F4: 150 | G4: 1 | H4: 1 | I4: 1 | J4: 10 | K4: 30 | L4: 1 | M4: 26 | N4: 80 | O4: 55 | P4: 10 | Q4: 1 | R4: 1 | S4: 10 | T4: 40 | U4: 45 | V4: 1 | W4: 1 | X4: 1 | Y4: 50 | Z4: 517 | AA4: 27 | AB4: 22 | AC4: 490
A5: 4 | B5: Cazorla | C5: 10 | E5: 1 | F5: 120 | G5: 35 | H5: 1 | I5: 1 | J5: 1 | K5: 30 | L5: 1 | M5: 10 | N5: 1 | O5: 1 | P5: 50 | Q5: 50 | R5: 1 | S5: 10 | T5: 20 | U5: 35 | V5: 1 | W5: 40 | X5: 43 | Y5: 1 | Z5: 463 | AA5: 27 | AB5: 22 | AC5: 436
A6: 5 | B6: Геннадий51 | D6: 1 | E6: 1 | F6: 40 | G6: 1 | H6: 18 | I6: 10 | J6: 1 | K6: 1 | L6: 65 | M6: 1 | N6: 1 | O6: 1 | P6: 35 | Q6: 1 | R6: 65 | S6: 10 | T6: 90 | U6: 20 | V6: 10 | W6: 40 | X6: 26 | Y6: 10 | Z6: 448 | AA6: 36 | AB6: 22 | AC6: 412
A7: 6 | B7: Acer | D7: 1 | E7: 1 | F7: 10 | H7: 1 | K7: 1 | L7: 30 | M7: 50 | N7: 1 | O7: 35 | P7: 1 | Q7: 1 | R7: 100 | S7: 1 | T7: 1 | U7: 1 | V7: 50 | W7: 20 | X7: 10 | Y7: 1 | Z7: 316 | AA7: 6 | AB7: 19 | AC7: 310
A8: 7 | B8: gugu911 | C8: 10 | E8: 1 | F8: 1 | G8: 18 | H8: 10 | I8: 35 | J8: 1 | K8: 1 | L8: 15 | M8: 35 | N8: 30 | O8: 1 | P8: 10 | Q8: 80 | R8: 30 | S8: 1 | T8: 1 | U8: 20 | V8: 1 | W8: 1 | X8: 43 | Y8: 1 | Z8: 346 | AA8: 36 | AB8: 22 | AC8: 310
A9: 8 | B9: marsianin65 | C9: 50 | E9: 10 | F9: 10 | G9: 26 | H9: 1 | I9: 1 | J9: 35 | K9: 1 | L9: 1 | M9: 1 | O9: 45 | P9: 1 | Q9: 30 | S9: 50 | T9: 1 | U9: 70 | V9: 1 | W9: 1 | Y9: 10 | Z9: 345 | AA9: 41 | AB9: 19 | AC9: 304
A10: 9 | B10: putoga | F10: 1 | I10: 1 | K10: 1 | L10: 50 | M10: 18 | N10: 100 | T10: 1 | W10: 120 | Z10: 292 | AA10: 0 | AB10: 8 | AC10: 292
A11: 10 | B11: Ranger | C11: 1 | E11: 1 | F11: 90 | G11: 1 | H11: 26 | I11: 1 | K11: 1 | L11: 1 | N11: 1 | O11: 20 | P11: 1 | Q11: 1 | R11: 1 | S11: 1 | T11: 40 | U11: 55 | V11: 35 | W11: 1 | X11: 1 | Y11: 1 | Z11: 280 | AA11: 7 | AB11: 20 | AC11: 273
A12: 11 | B12: leosin | C12: 1 | E12: 1 | F12: 10 | G12: 10 | I12: 26 | J12: 10 | K12: 1 | L12: 1 | M12: 1 | N12: 30 | O12: 1 | P12: 1 | Q12: 30 | R12: 30 | S12: 10 | T12: 40 | U12: 1 | V12: 1 | W12: 65 | Y12: 1 | Z12: 271 | AA12: 7 | AB12: 20 | AC12: 264
A13: 12 | B13: Katolia | D13: 18 | E13: 18 | F13: 40 | G13: 1 | H13: 1 | J13: 10 | K13: 100 | L13: 30 | M13: 1 | N13: 30 | O13: 1 | P13: 10 | Q13: 1 | Z13: 261 | AA13: 3 | AB13: 13 | AC13: 258
A14: 13 | B14: safin | D14: 1 | E14: 50 | F14: 1 | G14: 10 | H14: 10 | I14: 50 | J14: 26 | K14: 50 | L14: 1 | N14: 1 | V14: 18 | W14: 20 | Z14: 238 | AA14: 11 | AB14: 12 | AC14: 227
A15: 14 | B15: zurikati | C15: 18 | E15: 10 | F15: 1 | H15: 35 | I15: 18 | J15: 1 | K15: 1 | L15: 1 | M15: 10 | N15: 1 | O15: 20 | P15: 18 | Q15: 30 | R15: 1 | S15: 35 | T15: 1 | U15: 20 | W15: 40 | X15: 1 | Y15: 1 | Z15: 263 | AA15: 59 | AB15: 20 | AC15: 204
A16: 15 | B16: Seri | C16: 1 | E16: 10 | F16: 10 | G16: 1 | H16: 10 | I16: 1 | J16: 10 | L16: 100 | M16: 1 | N16: 30 | O16: 10 | P16: 1 | T16: 20 | W16: 1 | X16: 1 | Y16: 1 | Z16: 208 | AA16: 6 | AB16: 16 | AC16: 202
A17: 16 | B17: Montella | D17: 10 | E17: 1 | F17: 1 | H17: 10 | J17: 1 | K17: 15 | L17: 15 | M17: 10 | N17: 1 | Q17: 1 | R17: 1 | S17: 1 | T17: 1 | U17: 10 | V17: 26 | W17: 90 | X17: 10 | Y17: 1 | Z17: 205 | AA17: 14 | AB17: 18 | AC17: 191
A18: 17 | B18: LLEYTON26 | D18: 50 | E18: 35 | F18: 1 | H18: 1 | I18: 10 | J18: 1 | K18: 1 | L18: 1 | O18: 20 | P18: 1 | R18: 50 | T18: 1 | W18: 1 | Y18: 1 | Z18: 174 | AA18: 3 | AB18: 14 | AC18: 171
A19: 18(+1) | B19: JS | D19: 35 | E19: 1 | F19: 1 | G19: 50 | H19: 1 | I19: 10 | J19: 1 | K19: 1 | L19: 1 | M19: 1 | O19: 1 | P19: 26 | Q19: 30 | S19: 1 | T19: 1 | W19: 1 | X19: 1 | Y19: 10 | Z19: 173 | AA19: 7 | AB19: 18 | AC19: 166
A20: 19(-1) | B20: neon | F20: 40 | L20: 80 | Q20: 1 | T20: 20 | U20: 1 | W20: 20 | Z20: 162 | AA20: 0 | AB20: 6 | AC20: 162
A21: 20 | B21: Stivi | J21: 50 | K21: 65 | L21: 30 | M21: 1 | Z21: 146 | AA21: 0 | AB21: 4 | AC21: 146
A22: 21(+1) | B22: Dronor | F22: 10 | H22: 1 | I22: 1 | J22: 18 | L22: 1 | N22: 1 | R22: 1 | S22: 1 | T22: 65 | W22: 1 | X22: 10 | Y22: 26 | Z22: 136 | AA22: 1 | AB22: 12 | AC22: 135
A23: 22(-1) | B23: BARometer | D23: 1 | E23: 10 | F23: 1 | L23: 30 | S23: 18 | T23: 40 | U23: 1 | V23: 1 | W23: 1 | X23: 10 | Y23: 18 | Z23: 131 | AA23: 2 | AB23: 11 | AC23: 129
A24: 23 | B24: Людмила | F24: 40 | L24: 15 | N24: 15 | Q24: 1 | T24: 20 | U24: 1 | W24: 1 | Z24: 93 | AA24: 0 | AB24: 7 | AC24: 93
A25: 24 | B25: irina | C25: 1 | K25: 30 | L25: 1 | S25: 1 | T25: 1 | W25: 40 | Z25: 74 | AA25: 0 | AB25: 6 | AC25: 74
A26: 25(+2) | B26: Аргентинец | W26: 20 | X26: 18 | Y26: 35 | Z26: 73 | AA26: 0 | AB26: 3 | AC26: 73
A27: 26(-1) | B27: Montanes | D27: 1 | E27: 1 | F27: 10 | H27: 1 | J27: 1 | K27: 30 | L27: 1 | Z27: 45 | AA27: 0 | AB27: 7 | AC27: 45
A28: 27(-1) | B28: MC_Jason | D28: 26 | E28: 10 | F28: 1 | G28: 1 | Z28: 38 | AA28: 0 | AB28: 4 | AC28: 38
A29: 28 | B29: Шаховец | T29: 20 | Z29: 20 | AA29: 0 | AB29: 1 | AC29: 20
A30: 29 | B30: Poliglot17 | D30: 10 | Z30: 10 | AA30: 0 | AB30: 1 | AC30: 10
A31: 30 | B31: MrDavenport | F31: 1 | K31: 1 | L31: 1 | T31: 1 | Z31: 4 | AA31: 0 | AB31: 4 | AC31: 4
A32: 31 | B32: bakker | H32: 1 | K32: 1 | L32: 1 | Z32: 3 | AA32: 0 | AB32: 3 | AC32: 3
A33: 32 | B33: x-demon | G33: 1 | H33: 1 | L33: 1 | Z33: 3 | AA33: 0 | AB33: 3 | AC33: 3
A34: 33 | B34: Junolove | E34: 1 | Z34: 1 | AA34: 0 | AB34: 1 | AC34: 1
A35: 34 | B35: Graff | U35: 1 | Z35: 1 | AA35: 0 | AB35: 1 | AC35: 1

Sheet Лист2
